bitfinex-derivatives/quotes_BTCF0:USTF0_20240815
["timestamp","ask_amount","ask_price","bid_price","bid_amount"]
[1723719606060,0.3788,58414.0,58411.0,0.0682196]
[1723719606173,0.760283,58414.0,58413.0,0.05116565]
[1723719606452,0.085591,58408.0,58407.0,0.05142245]
[1723719606648,0.085591,58408.0,58404.0,0.05116565]
[1723719606649,1.17034,58408.0,58404.0,0.05116565]
[1723719606854,0.085596,58405.0,58402.0,0.37966565]
[1723719607054,0.085596,58405.0,58402.0,0.3285]
[1723719607659,0.085599,58403.0,58402.0,0.3285]
[1723719607851,0.171198,58403.0,58402.0,0.3285]
[1723719608048,0.085603,58400.0,58399.0,0.05116565]
[1723719608350,0.17121,58399.0,58398.0,0.0002568]
[1723719608553,0.085605,58399.0,58398.0,0.0002568]
[1723719608752,0.599325,58399.0,58398.0,0.0002568]
[1723719609759,0.094605,58399.0,58398.0,0.0012568]
[1723719610156,0.009,58399.0,58398.0,0.0012568]
[1723719610655,0.009,58399.0,58398.0,0.05240144]
[1723719610861,0.02,58399.0,58398.0,0.05340144]
[1723719611160,0.02,58399.0,58398.0,0.0878628]
[1723719611365,0.011,58399.0,58398.0,0.0868628]
[1723719611553,0.0858528,58405.0,58400.0,0.085602]
[1723719611864,0.0858528,58405.0,58402.0,0.05113445]
[1723719612161,0.0858528,58405.0,58401.0,0.29483645]
[1723719612662,0.0002568,58405.0,58401.0,0.20923445]
[1723719612860,0.0002568,58405.0,58403.0,0.05113445]
[1723719613097,0.0002568,58405.0,58404.0,0.05113445]
[1723719613360,0.0052568,58405.0,58404.0,0.085597]
[1723719613566,0.0052568,58405.0,58404.0,0.15377627]
[1723719613858,0.0002568,58405.0,58404.0,0.085597]
[1723719614067,0.0072568,58405.0,58404.0,0.085597]
[1723719614559,0.0102568,58405.0,58404.0,0.086597]
[1723719614758,0.0172568,58405.0,58404.0,0.086597]
[1723719615464,0.0102568,58405.0,58404.0,0.086597]
[1723719615654,0.0202568,58405.0,58404.0,0.087597]
[1723719620174,0.0202568,58405.0,58404.0,0.15577627]
[1723719623366,0.0202568,58405.0,58404.0,0.15571987]
[1723719625470,0.0202568,58405.0,58404.0,0.087597]
[1723719625656,0.0140397,58411.0,58410.0,0.085588]
[1723719625857,0.451383,58414.0,58410.0,0.05110957]
[1723719626059,0.46440344,58414.0,58411.0,0.21670957]
[1723719626261,0.46440344,58414.0,58411.0,0.1656]
[1723719626460,0.004,58414.0,58413.0,0.085584]
[1723719626768,0.0138063,58418.0,58417.0,0.085578]
[1723719626769,0.085577,58418.0,58417.0,0.085578]
[1723719627075,0.085577,58418.0,58417.0,0.13668994]
[1723719627460,0.085577,58418.0,58417.0,0.085578]
[1723719628570,0.110577,58418.0,58417.0,0.087578]
[1723719629069,0.025,58418.0,58417.0,0.15572726]
[1723719629467,0.025,58418.0,58417.0,0.087578]
[1723719633766,0.025,58418.0,58417.0,0.67714842]
[1723719633965,0.446359,58430.0,58429.0,0.085561]
[1723719634376,0.46010399,58430.0,58429.0,0.13671437]
[1723719635384,0.47110399,58430.0,58429.0,0.13771437]
[1723719635671,0.48310399,58430.0,58429.0,0.087561]
[1723719637674,0.48310399,58430.0,58429.0,0.002]
[1723719638793,0.51348,58429.0,58419.0,0.04108973]
[1723719638972,0.17116,58416.0,58415.0,0.05111245]
[1723719639166,0.085584,58413.0,58408.0,0.05111245]
[1723719639373,0.446384,58413.0,58408.0,0.05111245]
[1723719639575,0.531968,58413.0,58407.0,0.05111245]
[1723719639768,0.531968,58413.0,58405.0,0.05111245]
[1723719639769,1.445568,58413.0,58405.0,0.05111245]
[1723719639974,1.445568,58413.0,58412.0,8e-07]
[1723719639975,1.721152,58413.0,58412.0,8e-07]
[1723719640167,1.721152,58413.0,58395.0,0.08525562]
[1723719640168,0.80592154,58413.0,58399.0,0.05111245]
[1723719640369,0.446403,58400.0,58397.0,0.05111245]
[1723719640568,0.446403,58400.0,58393.0,0.04310439]
[1723719640569,0.085612,58394.0,58393.0,0.04310439]
[1723719640772,0.6567,58394.0,58386.0,0.00092]
[1723719640976,0.3608,58387.0,58379.0,0.08525562]
[1723719641176,0.085637,58377.0,58374.0,0.08525562]
[1723719641370,0.085637,58377.0,58372.0,0.08525562]
[1723719641673,0.3608,58381.0,58372.0,0.08525562]
[1723719641873,0.3608,58381.0,58376.0,0.085638]
[1723719642291,0.446431,58381.0,58373.0,0.3608]
[1723719642972,0.3608,58381.0,58373.0,0.3608]
[1723719643489,0.3608,58381.0,58379.0,0.013]
[1723719644087,0.3608,58381.0,58377.0,0.085637]
[1723719644778,0.3608,58381.0,58379.0,0.013]
[1723719644976,0.3608,58381.0,58379.0,0.025]
[1723719645177,0.085632,58380.0,58379.0,0.025]
[1723719645373,0.085632,58380.0,58379.0,0.012]
[1723719646390,0.599512,58380.0,58379.0,0.012]
[1723719646687,0.085635,58378.0,58377.0,0.028]
[1723719647282,0.085635,58378.0,58377.0,0.014]
[1723719647591,0.08564,58375.0,58369.0,0.0002568]
[1723719647789,0.446442,58374.0,58369.0,0.0002568]
[1723719648176,0.085642,58374.0,58369.0,0.0002568]
[1723719650189,0.446435,58379.0,58369.0,0.0002568]
[1723719650387,0.3608,58385.0,58371.0,0.6567]
[1723719650689,0.3608,58385.0,58380.0,0.085631]
[1723719650893,0.085628,58383.0,58380.0,0.085631]
[1723719651587,0.36099047,58386.0,58378.0,0.3608]
[1723719651784,0.085631,58381.0,58378.0,0.3608]
[1723719651985,0.36099047,58386.0,58378.0,0.446434]
[1723719652180,0.36099047,58386.0,58378.0,0.3608]
[1723719652388,0.36099047,58386.0,58385.0,0.085625]
[1723719653384,0.00019047,58386.0,58385.0,0.085625]
[1723719654192,0.00019047,58386.0,58385.0,0.999465]
[1723719654598,0.085614,58393.0,58388.0,0.085621]
[1723719654797,0.085607,58398.0,58388.0,1.0567]
[1723719654989,0.085607,58398.0,58396.0,0.3608]
[1723719655691,0.085607,58398.0,58397.0,0.085608]
[1723719655900,0.0856,58402.0,58396.0,0.3608]
[1723719656087,0.0856,58402.0,58401.0,0.085602]
[1723719656985,0.0002568,58403.0,58402.0,0.0856]
[1723719657186,0.3608,58414.0,58402.0,0.91368]
[1723719657403,0.3608,58414.0,58411.0,0.085586]
[1723719657701,0.085575,58419.0,58407.0,0.3608]
[1723719657898,0.085575,58419.0,58416.0,0.085579]
[1723719658398,0.085575,58419.0,58407.0,0.6893]
[1723719658399,0.085575,58419.0,58408.0,3.77]
[1723719658597,0.085575,58419.0,58411.0,0.001]
[1723719658900,0.085578,58418.0,58415.0,0.08558]
[1723719659197,0.001,58419.0,58416.0,0.002]
[1723719659393,0.085578,58417.0,58416.0,0.002]
[1723719660511,0.001,58419.0,58416.0,0.002]
[1723719660703,0.001,58419.0,58417.0,0.085578]
[1723719660999,0.001,58419.0,58416.0,0.002]
[1723719661199,0.001,58419.0,58416.0,0.001]
[1723719661686,0.001,58419.0,58412.0,0.0002568]
[1723719661890,0.001,58419.0,58417.0,0.001]
[1723719662500,0.001,58419.0,58416.0,0.08558]
[1723719662717,0.001,58419.0,58416.0,0.001]
[1723719662898,0.001,58419.0,58418.0,0.085577]
[1723719663099,0.0002568,58423.0,58422.0,0.085571]
[1723719664904,0.0012568,58423.0,58422.0,0.086571]
[1723719665303,0.0012568,58423.0,58422.0,0.001]
[1723719665602,0.0868258,58423.0,58422.0,0.001]
[1723719665803,0.0868258,58423.0,58422.0,0.002]
[1723719666236,0.1723948,58423.0,58422.0,0.002]
[1723719666599,0.6859148,58423.0,58422.0,0.002]
[1723719667804,0.6959148,58423.0,58422.0,0.00029593]
[1723719668804,0.6859148,58423.0,58422.0,0.00029593]
[1723719669014,0.0868258,58423.0,58422.0,0.00029593]
[1723719676822,0.0012568,58423.0,58422.0,0.00029593]
[1723719677345,0.0012568,58423.0,58422.0,0.08586693]
[1723719678224,0.0868258,58423.0,58422.0,0.00029593]
[1723719679626,0.0868258,58423.0,58422.0,0.08586693]
[1723719679627,0.0012568,58423.0,58422.0,0.08586693]
[1723719683120,0.0868258,58423.0,58422.0,0.08586693]
[1723719683524,0.0868258,58423.0,58422.0,0.00029593]
[1723719688919,0.0012568,58423.0,58422.0,0.00029593]
[1723719689125,0.0012568,58423.0,58422.0,0.24463919]
[1723719689327,0.0012568,58423.0,58422.0,0.15938357]
[1723719693725,0.0012568,58423.0,58422.0,0.15897311]
[1723719696037,0.0868258,58423.0,58422.0,0.15897311]
[1723719697337,0.0868258,58423.0,58422.0,0.15897126]
[1723719697842,0.0012568,58423.0,58422.0,0.15897126]
[1723719699739,0.0012568,58423.0,58422.0,0.15894083]
[1723719699944,0.0012568,58423.0,58422.0,0.15895302]
[1723719701843,0.0012568,58423.0,58422.0,0.26125977]
[1723719703539,0.0012568,58423.0,58422.0,0.15895302]
[1723719704333,0.0868258,58423.0,58422.0,0.07338202]
[1723719704537,0.0868258,58423.0,58422.0,0.07606126]
[1723719705130,0.01459249,58423.0,58422.0,0.07606126]
[1723719705335,0.01459249,58423.0,58422.0,0.16163226]
[1723719705532,0.01459249,58423.0,58422.0,0.26393901]
[1723719705737,0.0012568,58423.0,58422.0,0.26393901]
[1723719707049,0.0012568,58423.0,58422.0,0.16163226]
[1723719707264,0.0868258,58423.0,58422.0,0.26393901]
[1723719707441,0.0868258,58423.0,58422.0,0.16163226]
[1723719708732,0.0868258,58423.0,58422.0,0.08586693]
[1723719708944,0.0868258,58423.0,58422.0,0.26394688]
[1723719709347,0.0868258,58423.0,58422.0,0.16164013]
[1723719710443,0.0868258,58423.0,58422.0,0.26428157]
[1723719712948,0.0868258,58423.0,58422.0,0.16164013]
[1723719713445,0.0868258,58423.0,58422.0,0.16149957]
[1723719713944,0.0868258,58423.0,58422.0,0.26414481]
[1723719715051,0.0868258,58423.0,58422.0,0.16149957]
[1723719716547,0.0868258,58423.0,58422.0,0.07592857]
[1723719716748,0.1723948,58423.0,58422.0,0.07592857]
[1723719717251,0.0868258,58423.0,58422.0,0.07592857]
[1723719717848,0.0868258,58423.0,58422.0,0.17869085]
[1723719718246,0.0868258,58423.0,58422.0,0.0760131]
[1723719718747,0.0868258,58423.0,58422.0,0.22511126]
[1723719719861,0.0012568,58423.0,58422.0,0.31068226]
[1723719720060,0.0012568,58423.0,58422.0,0.41337975]
[1723719720252,0.0012568,58423.0,58422.0,4.08068226]
[1723719721069,0.0012568,58423.0,58422.0,0.16241001]
[1723719721253,0.0012568,58423.0,58422.0,0.31150082]
[1723719721449,0.0002568,58423.0,58422.0,0.31150082]
[1723719721651,0.0012568,58423.0,58422.0,0.31250082]
[1723719721945,0.0012568,58423.0,58422.0,0.41602057]
[1723719722147,0.0012568,58423.0,58422.0,0.31332333]
[1723719722550,0.0012568,58423.0,58422.0,0.41601061]
[1723719723157,0.0012568,58423.0,58422.0,0.40329852]
[1723719723550,0.0868258,58423.0,58422.0,0.40329852]
[1723719724579,0.0868258,58423.0,58422.0,0.40330172]
[1723719724966,0.0868258,58423.0,58422.0,0.40330193]
[1723719726950,0.0012568,58423.0,58422.0,0.48887293]
[1723719727158,0.085557,58432.0,58422.0,1.71082089]
[1723719727458,0.3608,58435.0,58429.0,0.7216]
[1723719727459,0.085553,58435.0,58429.0,0.7216]
[1723719727667,0.085558,58432.0,58430.0,0.39513093]
[1723719727853,0.085558,58432.0,58431.0,0.48528893]
[1723719728272,0.085558,58432.0,58431.0,0.48526995]
[1723719728557,0.085558,58432.0,58431.0,0.39529476]
[1723719729063,0.086558,58432.0,58431.0,0.39529476]
[1723719729357,0.086558,58432.0,58431.0,0.49783542]
[1723719729565,0.086558,58432.0,58431.0,0.49883542]
[1723719730063,0.086558,58432.0,58431.0,0.49952935]
[1723719730256,0.086558,58432.0,58431.0,0.35045411]
[1723719730965,0.085558,58432.0,58431.0,0.35145411]
[1723719731357,0.085558,58432.0,58431.0,0.24891345]
[1723719732254,0.01315361,58433.0,58432.0,0.085556]
[1723719732456,0.085552,58436.0,58435.0,0.085552]
[1723719732660,0.085552,58436.0,58435.0,0.24831696]
[1723719733374,0.085552,58436.0,58435.0,0.24830021]
[1723719734059,0.085546,58439.0,58437.0,0.085548]
[1723719734365,0.085547,58438.0,58437.0,0.085548]
[1723719735661,0.085547,58438.0,58437.0,0.086548]
[1723719735866,0.085547,58438.0,58437.0,0.087548]
[1723719738467,0.085547,58438.0,58437.0,0.002]
[1723719738768,0.085547,58438.0,58437.0,0.07028664]
[1723719739363,0.085547,58438.0,58437.0,0.002]
[1723719740570,0.085547,58438.0,58437.0,0.07028664]
[1723719741064,0.085547,58438.0,58437.0,0.002]
[1723719741563,0.085544,58441.0,58437.0,0.002]
[1723719741766,0.37372195,58442.0,58441.0,0.085543]
[1723719741975,0.01292195,58442.0,58441.0,0.446343]
[1723719742156,0.13687327,58449.0,58447.0,0.085534]
[1723719742359,0.085529,58451.0,58450.0,0.08553]
[1723719743264,0.09863991,58451.0,58450.0,0.08553]
[1723719743467,0.09863991,58451.0,58450.0,0.15373584]
[1723719743673,0.09863991,58451.0,58450.0,0.15473584]
[1723719744465,0.09863991,58451.0,58450.0,0.001]
[1723719744665,0.09863991,58451.0,58450.0,0.002]
[1723719748266,0.01311091,58451.0,58450.0,0.002]
[1723719748472,0.085526,58453.0,58450.0,0.002]
[1723719748661,0.085526,58453.0,58450.0,0.087529]
[1723719748861,0.085528,58452.0,58450.0,0.002]
[1723719749258,0.085528,58451.0,58450.0,0.002]
[1723719750572,0.085528,58451.0,58450.0,0.001]
[1723719750763,0.085528,58451.0,58450.0,0.002]
[1723719751164,0.085528,58451.0,58450.0,0.001]
[1723719751364,0.085528,58451.0,58450.0,0.002]
[1723719754568,0.73303341,58451.0,58450.0,0.002]
[1723719754770,0.085536,58446.0,58445.0,0.0002568]
[1723719754963,0.08554,58443.0,58442.0,0.06820584]
[1723719755159,0.085537,58445.0,58442.0,0.06820584]
[1723719755371,0.085537,58445.0,58443.0,0.0775]
[1723719755572,0.085537,58445.0,58444.0,0.06820584]
[1723719755771,0.085537,58445.0,58443.0,0.0775]
[1723719755772,0.085539,58444.0,58443.0,0.14570584]
[1723719756068,0.446339,58444.0,58443.0,0.0775]
[1723719756668,0.446339,58444.0,58443.0,0.14570941]
[1723719757169,0.446339,58444.0,58443.0,0.1467093]
[1723719757677,0.446339,58444.0,58443.0,0.0785]
[1723719757973,0.447339,58444.0,58443.0,0.0795]
[1723719758559,0.46026286,58444.0,58443.0,0.0795]
[1723719759477,0.09946286,58444.0,58443.0,0.0795]
[1723719761861,0.01392386,58444.0,58443.0,0.0795]
[1723719762065,0.0002568,58449.0,58443.0,0.51695008]
[1723719762266,0.0002568,58449.0,58446.0,0.08529879]
[1723719762474,0.0002568,58449.0,58447.0,0.24418482]
[1723719762672,0.0002568,58449.0,58447.0,0.16779879]
[1723719763271,0.01431222,58449.0,58448.0,0.085533]
[1723719763471,0.01531222,58449.0,58448.0,0.085533]
[1723719763982,0.01431222,58449.0,58448.0,0.085533]
[1723719764183,0.01531222,58449.0,58448.0,0.085533]
[1723719764570,0.01431222,58449.0,58448.0,0.17083179]
[1723719764798,0.01531222,58449.0,58448.0,0.24802339]
[1723719765181,0.01531222,58449.0,58448.0,0.1627246]
[1723719765376,0.085522,58456.0,58455.0,0.085523]
[1723719765678,0.085522,58456.0,58455.0,0.446323]
[1723719766573,0.085522,58456.0,58455.0,0.085523]
[1723719767074,0.086522,58456.0,58455.0,0.086523]
[1723719767287,0.001,58456.0,58455.0,0.086523]
[1723719767672,0.001,58456.0,58455.0,0.087523]
[1723719767873,0.001,58456.0,58455.0,0.002]
[1723719768073,0.086521,58456.0,58455.0,0.002]
[1723719770278,0.086521,58456.0,58455.0,0.087523]
[1723719770476,0.001,58456.0,58455.0,0.087523]
[1723719770982,0.001,58456.0,58455.0,0.16269953]
[1723719771282,0.01331872,58460.0,58459.0,0.085517]
[1723719771483,0.01331872,58460.0,58459.0,0.24584567]
[1723719771678,0.01331872,58460.0,58459.0,0.16049525]
[1723719771871,4e-05,58460.0,58459.0,0.16049525]
[1723719772083,4e-05,58460.0,58459.0,0.24585521]
[1723719772476,4e-05,58460.0,58459.0,0.17087696]
[1723719772676,4e-05,58460.0,58459.0,0.17187696]
[1723719773486,0.085555,58460.0,58459.0,0.001]
[1723719773676,0.085555,58460.0,58459.0,0.07026055]
[1723719773870,0.085555,58460.0,58459.0,0.002]
[1723719774081,0.095555,58460.0,58459.0,0.002]
[1723719774283,0.085518,58458.0,58457.0,0.06826055]
[1723719774476,0.456318,58458.0,58457.0,0.06826055]
[1723719774683,0.541836,58458.0,58457.0,0.06826055]
[1723719774881,0.531836,58458.0,58457.0,0.06826055]
[1723719775788,0.531836,58458.0,58457.0,0.06926055]
[1723719776489,0.531836,58458.0,58457.0,0.001]
[1723719776680,0.531836,58458.0,58457.0,0.002]
[1723719776880,0.541836,58458.0,58457.0,0.002]
[1723719777179,0.541836,58458.0,58457.0,0.05319257]
[1723719777577,1.140554,58458.0,58457.0,0.0239871]
[1723719777796,0.256563,58456.0,58455.0,0.04486039]
[1723719777976,0.085526,58453.0,58452.0,0.0509415]
[1723719778291,0.171056,58451.0,58450.0,0.0002568]
[1723719778486,0.531856,58451.0,58450.0,0.0002568]
[1723719778683,0.506328,58451.0,58450.0,0.0002568]
[1723719778877,0.446328,58451.0,58450.0,0.0002568]
[1723719780002,1.045096,58451.0,58450.0,0.0002568]
[1723719780284,1.045096,58451.0,58450.0,0.0012568]
[1723719780285,0.532856,58451.0,58450.0,0.0012568]
[1723719781884,0.534856,58451.0,58450.0,0.0022568]
[1723719782084,0.088528,58451.0,58450.0,0.0022568]
[1723719782395,0.46269741,58451.0,58450.0,0.0022568]
[1723719784288,0.54822541,58451.0,58450.0,0.0022568]
[1723719786496,0.55822541,58451.0,58450.0,0.0022568]
[1723719786697,0.08554,58443.0,58442.0,0.08535996]
[1723719786997,0.085542,58442.0,58441.0,0.08535996]
[1723719787191,0.085542,58442.0,58441.0,0.16023764]
[1723719788791,0.085543,58441.0,58440.0,0.08535996]
[1723719788991,0.085543,58441.0,58440.0,0.1605646]
[1723719789297,0.085545,58440.0,58439.0,0.16375996]
[1723719789805,0.085545,58440.0,58439.0,0.0784]
[1723719790997,0.087545,58440.0,58439.0,0.0784]
[1723719791502,0.090545,58440.0,58439.0,0.0784]
[1723719792005,0.090545,58440.0,58438.0,0.0832]
[1723719792006,0.085546,58439.0,58438.0,0.0832]
[1723719792697,0.005,58440.0,58437.0,0.08535996]
[1723719792899,0.085547,58438.0,58436.0,0.0002568]
[1723719793103,0.085549,58437.0,58436.0,0.0002568]
[1723719793903,0.171098,58437.0,58436.0,0.0002568]
[1723719794495,0.174098,58437.0,58436.0,0.0002568]
[1723719795291,0.088549,58437.0,58436.0,0.0002568]
[1723719796098,0.003,58437.0,58436.0,0.5991668]
[1723719796493,0.003,58437.0,58436.0,0.68452676]
[1723719796694,0.01591478,58442.0,58441.0,0.085543]
[1723719796889,0.0002568,58442.0,58441.0,0.085543]
[1723719798006,0.0022568,58442.0,58441.0,0.086543]
[1723719799206,0.0032568,58442.0,58441.0,0.086543]
[1723719799708,0.0012568,58442.0,58441.0,0.085543]
[1723719800098,0.0012568,58442.0,58441.0,0.17077557]
[1723719800907,0.0012568,58442.0,58441.0,0.24562298]
[1723719801100,0.0012568,58442.0,58441.0,0.17077557]
[1723719801400,0.0867988,58442.0,58441.0,0.16024923]
[1723719801604,0.085543,58441.0,58440.0,0.1477]
[1723719801811,0.446343,58441.0,58440.0,0.1477]
[1723719802003,0.456343,58441.0,58440.0,0.1477]
[1723719802204,0.531886,58441.0,58440.0,0.1477]
[1723719802407,0.085549,58437.0,58436.0,0.0002568]
[1723719802605,0.171098,58437.0,58436.0,0.0002568]
[1723719803809,0.171098,58437.0,58436.0,0.0022568]
[1723719804408,0.172098,58437.0,58436.0,0.0002568]
[1723719805210,0.086549,58437.0,58436.0,0.0002568]
[1723719806706,0.4627532,58437.0,58436.0,0.0002568]
[1723719807116,0.4627532,58437.0,58436.0,0.16203694]
[1723719807317,0.001,58437.0,58436.0,0.17116454]
[1723719807513,0.001,58437.0,58436.0,0.16194963]
[1723719808419,0.001,58437.0,58436.0,0.16167683]
[1723719809010,0.0002568,58442.0,58441.0,0.085543]
[1723719809206,0.0002568,58442.0,58441.0,0.16110301]
[1723719809409,0.085532,58449.0,58441.0,0.67662119]
[1723719809617,0.085532,58449.0,58447.0,0.17088829]
[1723719809916,0.085532,58449.0,58448.0,0.2022]
[1723719811213,0.085532,58449.0,58448.0,0.287733]
[1723719811426,0.085532,58449.0,58448.0,0.37308972]
[1723719811615,0.085532,58449.0,58448.0,0.287733]
[1723719811813,0.085532,58449.0,58448.0,0.288733]
[1723719812323,0.085532,58449.0,58448.0,0.2032]
[1723719813735,0.446332,58449.0,58448.0,0.2042]
[1723719813924,0.085532,58449.0,58448.0,0.2042]
[1723719814324,0.01590172,58450.0,58448.0,0.2042]
[1723719814526,0.3608,58451.0,58449.0,0.085531]
[1723719815627,0.446329,58451.0,58449.0,0.085531]
[1723719815826,0.08553,58450.0,58449.0,0.085531]
[1723719816928,0.08553,58450.0,58449.0,0.086531]
[1723719817625,0.08553,58450.0,58449.0,0.087531]
[1723719821430,0.08553,58450.0,58449.0,0.002]
[1723719823237,0.3608,58451.0,58449.0,0.087531]
[1723719824140,0.3608,58451.0,58450.0,0.08553]
[1723719824732,0.3608,58451.0,58450.0,0.24478451]
[1723719825029,0.3608,58451.0,58450.0,0.15942779]
[1723719825540,0.3608,58451.0,58450.0,0.16042779]
[1723719826333,0.3608,58451.0,58450.0,0.24572162]
[1723719826738,0.0159787,58455.0,58450.0,0.24559924]
[1723719826932,0.3648,58458.0,58452.0,0.08529383]
[1723719827133,0.3648,58458.0,58457.0,0.08552]
[1723719827346,0.004,58458.0,58457.0,0.44632]
[1723719827537,4e-05,58460.0,58459.0,0.085517]
[1723719827734,4e-05,58460.0,58459.0,0.15803817]
[1723719828134,4e-05,58460.0,58459.0,0.32213817]
[1723719828736,4e-05,58460.0,58459.0,0.32313817]
[1723719829461,4e-05,58460.0,58459.0,0.250617]
[1723719829933,4e-05,58460.0,58459.0,0.251617]
[1723719831934,0.01536583,58462.0,58461.0,0.085514]
[1723719832135,0.3608,58468.0,58466.0,0.085506]
[1723719832444,0.3608,58468.0,58467.0,0.085505]
[1723719832644,0.01,58478.0,58472.0,0.085498]
[1723719832841,0.01,58478.0,58473.0,0.1464]
[1723719833544,0.09549,58478.0,58473.0,0.231896]
[1723719833742,0.085493,58476.0,58473.0,0.231896]
[1723719834648,0.085493,58476.0,58473.0,0.232896]
[1723719835047,0.085493,58476.0,58473.0,0.233896]
[1723719837234,0.02551124,58478.0,58473.0,0.1484]
[1723719837235,0.085495,58474.0,58473.0,0.1484]
[1723719837441,0.446295,58474.0,58473.0,0.0999]
[1723719838561,0.446295,58474.0,58473.0,0.0989]
[1723719838739,0.446295,58474.0,58473.0,0.0999]
[1723719841062,0.446295,58474.0,58473.0,0.002]
[1723719841239,0.53179,58474.0,58473.0,0.002]
[1723719842146,0.446295,58474.0,58473.0,0.002]
[1723719842348,0.085495,58474.0,58473.0,0.002]
[1723719846453,0.02551124,58478.0,58473.0,0.002]
[1723719846653,0.02551124,58478.0,58473.0,0.087496]
[1723719847351,0.085493,58476.0,58473.0,0.087496]
[1723719847550,0.085495,58474.0,58473.0,0.07009504]
[1723719847755,0.085495,58474.0,58473.0,0.002]
[1723719848456,0.54179,58474.0,58473.0,0.002]
[1723719848955,0.53179,58474.0,58473.0,0.002]
[1723719851354,0.56179,58474.0,58473.0,0.002]
[1723719851651,0.53179,58474.0,58473.0,0.002]
[1723719851957,0.54179,58474.0,58473.0,0.002]
[1723719854560,0.53179,58474.0,58473.0,0.002]
[1723719855751,0.55179,58474.0,58473.0,0.002]
[1723719856447,0.60286128,58474.0,58473.0,0.002]
[1723719856651,0.170998,58471.0,58470.0,0.06809504]
[1723719856964,0.085501,58470.0,58469.0,0.06835162]
[1723719857152,0.095501,58470.0,58469.0,0.06835162]
[1723719857349,0.085501,58470.0,58469.0,0.00025658]
[1723719857859,0.085501,58470.0,58469.0,0.06856336]
[1723719857860,0.704082,58470.0,58469.0,0.06856336]
[1723719858165,0.171022,58463.0,58462.0,0.0851188]
[1723719858358,0.171022,58463.0,58461.0,0.00500446]
[1723719858359,0.782111,58463.0,58461.0,0.00500446]
[1723719858566,0.05123566,58462.0,58458.0,0.0976]
[1723719858761,0.171034,58459.0,58458.0,0.0976]
[1723719859357,0.085517,58459.0,58458.0,0.0976]
[1723719859865,0.085517,58459.0,58458.0,0.0996]
[1723719860161,0.446317,58459.0,58458.0,0.0996]
[1723719860461,0.447317,58459.0,58458.0,0.0996]
[1723719860761,0.449317,58459.0,58458.0,0.0996]
[1723719863252,0.37893229,58459.0,58458.0,0.185118]
[1723719863449,0.003,58459.0,58458.0,0.76798889]
[1723719865155,0.003,58459.0,58458.0,0.78274653]
[1723719865361,0.00025583,58464.0,58463.0,0.085511]
[1723719865957,0.00025583,58464.0,58463.0,0.21726739]
[1723719866454,0.00225583,58464.0,58463.0,0.28837125]
[1723719869463,0.00225583,58464.0,58463.0,0.20311486]
[1723719869762,0.00225583,58464.0,58463.0,0.28839538]
[1723719869958,0.00225583,58464.0,58463.0,0.28845708]
[1723719870667,0.00225583,58464.0,58463.0,0.20317656]
[1723719874159,0.00225583,58464.0,58463.0,0.134011]
[1723719874358,0.00225583,58464.0,58463.0,0.20259948]
[1723719876460,0.00225583,58464.0,58463.0,0.45372437]
[1723719876663,1e-08,58464.0,58463.0,0.86473957]
[1723719877062,1e-08,58464.0,58463.0,0.96710345]
[1723719877558,1e-08,58464.0,58463.0,0.86474019]
[1723719877967,1e-08,58464.0,58463.0,0.96711907]
[1723719878169,1e-08,58464.0,58463.0,0.71575948]
[1723719878374,1e-08,58464.0,58463.0,0.94734448]
[1723719878563,1e-08,58464.0,58463.0,0.86473982]
[1723719878964,1e-08,58464.0,58463.0,0.79615134]
[1723719879171,1e-08,58464.0,58463.0,0.86456787]
[1723719879678,1e-08,58464.0,58463.0,0.94712512]
[1723719880376,1e-08,58464.0,58463.0,0.94713706]
[1723719880781,1e-08,58464.0,58463.0,0.94713487]
[1723719881572,1e-08,58464.0,58463.0,0.96222905]
[1723719882371,1e-08,58464.0,58463.0,1.32302905]
[1723719882989,1e-08,58464.0,58463.0,1.17405097]
[1723719883169,1e-08,58464.0,58463.0,1.32303025]
[1723719883672,1e-08,58464.0,58463.0,0.80956914]
[1723719884070,1e-08,58464.0,58463.0,0.72705516]
[1723719884273,1e-08,58464.0,58463.0,0.71193695]
[1723719885071,0.08550901,58464.0,58463.0,0.81430445]
[1723719885275,0.10061649,58464.0,58463.0,0.07014667]
[1723719885573,0.10061649,58464.0,58463.0,0.15545843]
[1723719885773,0.10061649,58464.0,58463.0,0.07014667]
[1723719887182,0.10061649,58464.0,58463.0,0.15565767]
[1723719891473,0.10061649,58464.0,58463.0,0.25802517]
[1723719892575,0.10061649,58464.0,58463.0,0.15565767]
[1723719893475,0.10061649,58464.0,58463.0,0.23903994]
[1723719895973,0.10061649,58464.0,58463.0,0.35723994]
[1723719900883,0.10061649,58464.0,58463.0,0.35822626]
[1723719902274,0.10061649,58464.0,58463.0,0.24002626]
[1723719903086,0.10061649,58464.0,58463.0,0.38901837]
[1723719903281,0.10061649,58464.0,58463.0,0.24002626]
[1723719904186,0.10061649,58464.0,58463.0,0.38901837]
[1723719904584,0.10061649,58464.0,58460.0,0.10256513]
[1723719904585,0.085514,58461.0,58460.0,0.10256513]
[1723719904779,0.935542,58461.0,58460.0,0.04915956]
[1723719905087,0.171048,58454.0,58453.0,0.00025658]
[1723719905294,0.531848,58454.0,58453.0,0.00025658]
[1723719905484,1.10484809,58454.0,58453.0,0.00025658]
[1723719905690,1.53913168,58454.0,58453.0,0.00025658]
[1723719905885,1.83483168,58454.0,58453.0,0.00025658]
[1723719906088,1.90322713,58454.0,58453.0,0.00025658]
[1723719906482,1.48602751,58454.0,58453.0,0.00025658]
[1723719906689,1.40050351,58454.0,58453.0,0.00025658]
[1723719906880,0.531848,58454.0,58453.0,0.00025658]
[1723719908489,0.535848,58454.0,58453.0,0.00025658]
[1723719909190,0.55080574,58454.0,58453.0,0.00025658]
[1723719909389,0.46528174,58454.0,58453.0,0.00025658]
[1723719910284,1.47268022,58454.0,58453.0,0.00025658]
[1723719910979,0.55944022,58454.0,58453.0,0.00025658]
[1723719911380,0.47391622,58454.0,58453.0,0.00025658]
[1723719911783,0.46528174,58454.0,58453.0,0.00025658]
[1723719914989,0.3648,58454.0,58453.0,0.08578258]